[Event "*** Titled Tuesday Blitz"]
[Site "Chess.com"]
[Date "2021.04.27"]
[Round "3"]
[White "PavelShkapenko"]
[Black "MPGM"]
[Result "0-1"]
[WhiteElo "2658"]
[BlackElo "2491"]
[TimeControl "180+1"]
[EndTime "10:26:15 PDT"]
[Termination "MPGM won by checkmate"]

1. e4 {[%clk 0:03:00.9]} 1... c6 {[%clk 0:02:58.3]} 2. d4 {[%clk 0:03:00.3]}
2... d5 {[%clk 0:02:59.2]} 3. e5 {[%clk 0:03:00.7]} 3... c5 {[%clk 0:02:59.3]}
4. dxc5 {[%clk 0:02:59.9]} 4... e6 {[%clk 0:02:59.2]} 5. a3 {[%clk 0:02:58.4]}
5... Bxc5 {[%clk 0:02:58.9]} 6. b4 {[%clk 0:02:52.8]} 6... Be7 {[%clk
0:02:57.1]} 7. Qg4 {[%clk 0:02:52.6]} 7... Kf8 {[%clk 0:02:50]} 8. Nf3 {[%clk
0:02:51.9]} 8... f5 {[%clk 0:02:35.3]} 9. Qg3 {[%clk 0:02:44.7]} 9... Nh6 {[%clk
0:02:31.4]} 10. Bd3 {[%clk 0:02:35.1]} 10... Nf7 {[%clk 0:02:31.1]} 11. h4
{[%clk 0:02:33.4]} 11... a5 {[%clk 0:02:28.1]} 12. b5 {[%clk 0:02:30]} 12... Nd7
{[%clk 0:02:27.6]} 13. O-O {[%clk 0:02:28.1]} 13... Nc5 {[%clk 0:02:26.2]} 14.
Bf4 {[%clk 0:02:26.6]} 14... Ne4 {[%clk 0:02:22.3]} 15. Qh2 {[%clk 0:02:15.7]}
15... h6 {[%clk 0:02:16.8]} 16. h5 {[%clk 0:02:13.6]} 16... Kg8 {[%clk
0:02:12.9]} 17. Nbd2 {[%clk 0:02:12]} 17... Kh7 {[%clk 0:02:10.8]} 18. Rfd1
{[%clk 0:02:07.7]} 18... Qb6 {[%clk 0:02:07.2]} 19. Be3 {[%clk 0:02:04.2]} 19...
Bc5 {[%clk 0:02:05.6]} 20. Bxc5 {[%clk 0:01:57.9]} 20... Qxc5 {[%clk 0:02:06.5]}
21. Qh4 {[%clk 0:01:54.7]} 21... Re8 {[%clk 0:01:59.5]} 22. c4 {[%clk
0:01:52.1]} 22... Bd7 {[%clk 0:01:47.2]} 23. cxd5 {[%clk 0:01:44.7]} 23... exd5
{[%clk 0:01:48.1]} 24. Nxe4 {[%clk 0:01:42.1]} 24... dxe4 {[%clk 0:01:44.1]} 25.
Bxe4 {[%clk 0:01:42.4]} 25... fxe4 {[%clk 0:01:32.3]} 26. Qxe4+ {[%clk
0:01:39.8]} 26... Kh8 {[%clk 0:01:31.7]} 27. Rxd7 {[%clk 0:01:39.2]} 27... Nxe5
{[%clk 0:01:32.1]} 28. Nxe5 {[%clk 0:01:35.9]} 28... Rxe5 {[%clk 0:01:33]} 29.
Qxb7 {[%clk 0:01:06.6]} 29... Rf8 {[%clk 0:01:31.9]} 30. Rf1 {[%clk 0:01:07.2]}
30... Rxf2 {[%clk 0:01:20.9]} 31. Rxf2 {[%clk 0:01:07.3]} 31... Re1+ {[%clk
0:01:20.7]} 32. Kh2 {[%clk 0:01:07.8]} 32... Qxh5+ {[%clk 0:01:11.3]} 33. Kg3
{[%clk 0:01:05.9]} 33... Qg5+ {[%clk 0:01:11.3]} 34. Kh3 {[%clk 0:00:59.3]}
34... Rh1# {[%clk 0:01:10.7]} 0-1

[Event "*** Titled Tuesday Blitz"]
[Site "Chess.com"]
[Date "2021.04.27"]
[Round "3"]
[White "TheKingOfTheForest"]
[Black "LileKoridze"]
[Result "0-1"]
[WhiteElo "2231"]
[BlackElo "2413"]
[TimeControl "180+1"]
[EndTime "10:26:20 PDT"]
[Termination "LileKoridze won by resignation"]

1. d4 {[%clk 0:02:51]} 1... Nf6 {[%clk 0:02:59.5]} 2. c4 {[%clk 0:02:49.4]} 2...
e6 {[%clk 0:02:59.5]} 3. Nc3 {[%clk 0:02:49.1]} 3... Bb4 {[%clk 0:02:59.3]} 4.
Qc2 {[%clk 0:02:48.1]} 4... O-O {[%clk 0:02:58.9]} 5. a3 {[%clk 0:02:48.1]} 5...
Bxc3+ {[%clk 0:02:58.9]} 6. Qxc3 {[%clk 0:02:49]} 6... b6 {[%clk 0:02:59.1]} 7.
Bg5 {[%clk 0:02:47.3]} 7... Bb7 {[%clk 0:02:59]} 8. e3 {[%clk 0:02:47.7]} 8...
d5 {[%clk 0:02:58.6]} 9. cxd5 {[%clk 0:02:43.7]} 9... exd5 {[%clk 0:02:57.2]}
10. Rc1 {[%clk 0:02:41.4]} 10... h6 {[%clk 0:02:52.5]} 11. Bh4 {[%clk
0:02:39.8]} 11... c5 {[%clk 0:02:43.4]} 12. Nf3 {[%clk 0:02:38.8]} 12... Nbd7
{[%clk 0:02:41.6]} 13. Ne5 {[%clk 0:02:27.8]} 13... cxd4 {[%clk 0:02:37.7]} 14.
Qxd4 {[%clk 0:02:24.5]} 14... g5 {[%clk 0:02:33.2]} 15. Nxd7 {[%clk 0:02:19.7]}
15... Nxd7 {[%clk 0:02:29.3]} 16. Bg3 {[%clk 0:02:18.4]} 16... Nc5 {[%clk
0:02:29.3]} 17. Qb4 {[%clk 0:01:53.8]} 17... d4 {[%clk 0:02:13.7]} 18. Rxc5
{[%clk 0:01:48.2]} 18... bxc5 {[%clk 0:02:12.3]} 19. Qxb7 {[%clk 0:01:47.7]}
19... Qa5+ {[%clk 0:02:12.3]} 20. Ke2 {[%clk 0:01:30.9]} 20... d3+ {[%clk
0:02:09.2]} 21. Kf3 {[%clk 0:01:29.5]} 21... c4 {[%clk 0:02:06]} 22. e4 {[%clk
0:01:00.3]} 22... f5 {[%clk 0:01:48.8]} 23. Qd5+ {[%clk 0:00:36.7]} 23... Qxd5
{[%clk 0:01:48.1]} 24. exd5 {[%clk 0:00:37.6]} 24... f4 {[%clk 0:01:48.5]} 25.
Ke4 {[%clk 0:00:27.5]} 25... fxg3 {[%clk 0:01:47.6]} 26. hxg3 {[%clk 0:00:28]}
26... Rae8+ {[%clk 0:01:47.7]} 27. Kd4 {[%clk 0:00:26.9]} 27... Rxf2 {[%clk
0:01:47.4]} 28. Kxc4 {[%clk 0:00:26.4]} 28... d2 {[%clk 0:01:46.5]} 29. Bd3
{[%clk 0:00:20.8]} 29... Re1 {[%clk 0:01:46.2]} 30. Rxh6 {[%clk 0:00:19.6]}
30... d1=Q {[%clk 0:01:44.8]} 31. Rg6+ {[%clk 0:00:19.7]} 31... Kf8 {[%clk
0:01:45.2]} 32. Rxg5 {[%clk 0:00:17.9]} 32... Qc1+ {[%clk 0:01:44.5]} 33. Kd4
{[%clk 0:00:18]} 33... Qxg5 {[%clk 0:01:45.4]} 0-1

[Event "*** Titled Tuesday Blitz"]
[Site "Chess.com"]
[Date "2021.04.27"]
[Round "3"]
[White "chessdiamant"]
[Black "Pertinhez76"]
[Result "1-0"]
[WhiteElo "2303"]
[BlackElo "2100"]
[TimeControl "180+1"]
[EndTime "10:26:24 PDT"]
[Termination "chessdiamant won by resignation"]

1. Nf3 {[%clk 0:02:59]} 1... Nf6 {[%clk 0:02:57.7]} 2. g3 {[%clk 0:02:57.3]}
2... g6 {[%clk 0:02:53.5]} 3. b3 {[%clk 0:02:56.9]} 3... Bg7 {[%clk 0:02:52.9]}
4. Bb2 {[%clk 0:02:57.8]} 4... d6 {[%clk 0:02:51.5]} 5. d4 {[%clk 0:02:55]} 5...
O-O {[%clk 0:02:51.1]} 6. Bg2 {[%clk 0:02:54.7]} 6... Nc6 {[%clk 0:02:50.9]} 7.
O-O {[%clk 0:02:52.9]} 7... Re8 {[%clk 0:02:50.1]} 8. c4 {[%clk 0:02:48]} 8...
Nd7 {[%clk 0:02:49.7]} 9. Nc3 {[%clk 0:02:45.6]} 9... e5 {[%clk 0:02:48.2]} 10.
dxe5 {[%clk 0:02:45.7]} 10... Ndxe5 {[%clk 0:02:46.9]} 11. Qd2 {[%clk
0:02:35.6]} 11... Bg4 {[%clk 0:02:41.9]} 12. Nxe5 {[%clk 0:02:33.1]} 12... dxe5
{[%clk 0:02:34.9]} 13. Nd5 {[%clk 0:02:10.3]} 13... Nd4 {[%clk 0:02:27.4]} 14.
f3 {[%clk 0:01:55.3]} 14... Be6 {[%clk 0:02:21.3]} 15. e4 {[%clk 0:01:40.3]}
15... c6 {[%clk 0:02:19.7]} 16. Bxd4 {[%clk 0:01:40.1]} 16... exd4 {[%clk
0:02:15.8]} 17. Nf4 {[%clk 0:01:38.4]} 17... Qb6 {[%clk 0:02:12.4]} 18. Nxe6
{[%clk 0:01:35.3]} 18... fxe6 {[%clk 0:02:11.8]} 19. Qd3 {[%clk 0:01:32.3]}
19... Rad8 {[%clk 0:02:10.1]} 20. h4 {[%clk 0:01:30.6]} 20... c5 {[%clk
0:02:09.9]} 21. f4 {[%clk 0:01:30.5]} 21... a5 {[%clk 0:02:04.3]} 22. e5 {[%clk
0:01:30]} 22... Re7 {[%clk 0:02:02.3]} 23. Be4 {[%clk 0:01:27.5]} 23... Rf8
{[%clk 0:02:01.5]} 24. h5 {[%clk 0:01:26.1]} 24... g5 {[%clk 0:01:51.9]} 25.
Bxh7+ {[%clk 0:01:22.5]} 25... Kh8 {[%clk 0:01:51.4]} 26. fxg5 {[%clk
0:01:19.4]} 26... Qd8 {[%clk 0:01:45.4]} 27. Rxf8+ {[%clk 0:01:07.5]} 27... Qxf8
{[%clk 0:01:40]} 28. Rf1 {[%clk 0:01:05.6]} 28... Qb8 {[%clk 0:01:37.7]} 29. Qg6
{[%clk 0:00:46.3]} 29... Qxe5 {[%clk 0:01:29.6]} 30. Rf8+ {[%clk 0:00:45.6]} 1-0

[Event "*** Titled Tuesday Blitz"]
[Site "Chess.com"]
[Date "2021.04.27"]
[Round "3"]
[White "VladaSviridova"]
[Black "Diaschess88"]
[Result "0-1"]
[WhiteElo "2289"]
[BlackElo "2554"]
[TimeControl "180+1"]
[EndTime "10:26:25 PDT"]
[Termination "Diaschess88 won by checkmate"]

1. d4 {[%clk 0:03:00.9]} 1... d5 {[%clk 0:02:59.1]} 2. c4 {[%clk 0:03:01.1]}
2... c6 {[%clk 0:02:59.5]} 3. Nf3 {[%clk 0:03:01.5]} 3... Nf6 {[%clk 0:02:59.9]}
4. Nc3 {[%clk 0:03:01.9]} 4... e6 {[%clk 0:03:00.3]} 5. e3 {[%clk 0:03:01.7]}
5... Nbd7 {[%clk 0:03:00]} 6. Qc2 {[%clk 0:03:01.8]} 6... Bd6 {[%clk 0:02:59.1]}
7. Bd3 {[%clk 0:03:01.6]} 7... Qe7 {[%clk 0:02:57.6]} 8. cxd5 {[%clk 0:02:57.2]}
8... exd5 {[%clk 0:02:56.8]} 9. Bd2 {[%clk 0:02:50.9]} 9... O-O {[%clk
0:02:56.4]} 10. O-O {[%clk 0:02:50.1]} 10... Re8 {[%clk 0:02:54.1]} 11. h3
{[%clk 0:02:49.6]} 11... Ne4 {[%clk 0:02:50.9]} 12. a3 {[%clk 0:02:39]} 12... f5
{[%clk 0:02:49.8]} 13. b4 {[%clk 0:02:34.9]} 13... a6 {[%clk 0:02:47.5]} 14. Na4
{[%clk 0:02:27.3]} 14... g5 {[%clk 0:02:41.2]} 15. Nh2 {[%clk 0:02:05]} 15...
Ndf6 {[%clk 0:02:30.9]} 16. Nb6 {[%clk 0:00:56.9]} 16... Bxh2+ {[%clk 0:02:27]}
17. Kh1 {[%clk 0:00:45.8]} 17... Bd6 {[%clk 0:01:55.5]} 18. Nxa8 {[%clk
0:00:45.5]} 18... g4 {[%clk 0:01:55.2]} 19. Nb6 {[%clk 0:00:39.2]} 19... Be6
{[%clk 0:01:54.1]} 20. Kg1 {[%clk 0:00:29.9]} 20... Bb8 {[%clk 0:01:52.2]} 21.
f4 {[%clk 0:00:25]} 21... gxf3 {[%clk 0:01:45.3]} 22. gxf3 {[%clk 0:00:16.5]}
22... Qg7+ {[%clk 0:01:41.9]} 23. Kh1 {[%clk 0:00:11.1]} 23... Qg3 {[%clk
0:01:28.9]} 24. Rg1 {[%clk 0:00:10.2]} 24... Nf2# {[%clk 0:01:27.9]} 0-1

[Event "*** Titled Tuesday Blitz"]
[Site "Chess.com"]
[Date "2021.04.27"]
[Round "3"]
[White "barbara25"]
[Black "mamonika"]
[Result "1-0"]
[WhiteElo "2290"]
[BlackElo "2037"]
[TimeControl "180+1"]
[EndTime "10:26:26 PDT"]
[Termination "barbara25 won on time"]

1. e4 {[%clk 0:03:00.9]} 1... c5 {[%clk 0:02:50.9]} 2. Nf3 {[%clk 0:02:55.8]}
2... e6 {[%clk 0:02:48.8]} 3. g3 {[%clk 0:02:55.1]} 3... Nc6 {[%clk 0:02:42.4]}
4. Bg2 {[%clk 0:02:54.4]} 4... d5 {[%clk 0:02:36.6]} 5. exd5 {[%clk 0:02:54]}
5... exd5 {[%clk 0:02:36.9]} 6. O-O {[%clk 0:02:53.7]} 6... Nf6 {[%clk
0:02:33.3]} 7. d4 {[%clk 0:02:53.4]} 7... Be6 {[%clk 0:02:28.6]} 8. Nc3 {[%clk
0:02:50.8]} 8... Be7 {[%clk 0:02:12.6]} 9. Ne2 {[%clk 0:02:50]} 9... O-O {[%clk
0:02:06.7]} 10. Nf4 {[%clk 0:02:49]} 10... Bg4 {[%clk 0:01:59.1]} 11. c3 {[%clk
0:02:47.1]} 11... cxd4 {[%clk 0:01:56.7]} 12. cxd4 {[%clk 0:02:46]} 12... Qb6
{[%clk 0:01:42.1]} 13. Be3 {[%clk 0:02:44]} 13... Rfd8 {[%clk 0:01:08.3]} 14. h3
{[%clk 0:02:42.3]} 14... Bf5 {[%clk 0:01:06.8]} 15. b3 {[%clk 0:02:40.1]} 15...
Rac8 {[%clk 0:01:02.7]} 16. Rc1 {[%clk 0:02:36.6]} 16... Ne4 {[%clk 0:00:56.2]}
17. g4 {[%clk 0:02:31.9]} 17... Bg6 {[%clk 0:00:55.7]} 18. h4 {[%clk 0:02:29.3]}
18... f5 {[%clk 0:00:29.9]} 19. g5 {[%clk 0:02:21.9]} 19... Bf7 {[%clk
0:00:23.1]} 20. Ne5 {[%clk 0:02:11.7]} 20... Nxe5 {[%clk 0:00:19.8]} 21. Rxc8
{[%clk 0:02:09.1]} 21... Rxc8 {[%clk 0:00:19.4]} 22. dxe5 {[%clk 0:02:09.1]}
22... Qa5 {[%clk 0:00:18.6]} 23. e6 {[%clk 0:02:08.3]} 23... Be8 {[%clk
0:00:18.1]} 24. Nxd5 {[%clk 0:02:07]} 24... Bd6 {[%clk 0:00:02.6]} 25. Bxe4
{[%clk 0:01:59.9]} 25... fxe4 {[%clk 0:00:02.7]} 26. Nf6+ {[%clk 0:01:59.9]}
26... gxf6 {[%clk 0:00:03.2]} 27. Qxd6 {[%clk 0:01:59.8]} 27... fxg5 {[%clk
0:00:02.4]} 28. hxg5 {[%clk 0:01:58.7]} 28... Qf5 {[%clk 0:00:01.8]} 29. e7
{[%clk 0:01:50.9]} 29... Qg4+ {[%clk 0:00:01.7]} 30. Qg3 {[%clk 0:01:50.9]}
30... Qf5 {[%clk 0:00:01.4]} 31. f3 {[%clk 0:01:47.9]} 1-0

[Event "*** Titled Tuesday Blitz"]
[Site "Chess.com"]
[Date "2021.04.27"]
[Round "3"]
[White "OlifantCZ"]
[Black "Vesper2018"]
[Result "0-1"]
[WhiteElo "2262"]
[BlackElo "2536"]
[TimeControl "180+1"]
[EndTime "10:26:30 PDT"]
[Termination "Vesper2018 won by resignation"]

1. c4 {[%clk 0:03:00.9]} 1... e5 {[%clk 0:02:58.2]} 2. g3 {[%clk 0:03:01.3]}
2... Nc6 {[%clk 0:02:56.9]} 3. Bg2 {[%clk 0:03:01.6]} 3... g6 {[%clk 0:02:57.4]}
4. Nc3 {[%clk 0:03:01.9]} 4... Bg7 {[%clk 0:02:57.8]} 5. d3 {[%clk 0:03:01.9]}
5... d6 {[%clk 0:02:55.2]} 6. e4 {[%clk 0:03:02.2]} 6... f5 {[%clk 0:02:54.8]}
7. Nge2 {[%clk 0:03:02.1]} 7... Nf6 {[%clk 0:02:54.9]} 8. O-O {[%clk 0:03:02.7]}
8... O-O {[%clk 0:02:55.5]} 9. Nd5 {[%clk 0:03:02.2]} 9... Be6 {[%clk
0:02:49.8]} 10. Bg5 {[%clk 0:02:47.8]} 10... Qd7 {[%clk 0:02:49.2]} 11. Qd2
{[%clk 0:02:34.6]} 11... Nh5 {[%clk 0:02:42.9]} 12. Bh6 {[%clk 0:02:19.4]} 12...
f4 {[%clk 0:02:37.6]} 13. Bxg7 {[%clk 0:02:16.4]} 13... Qxg7 {[%clk 0:02:38]}
14. gxf4 {[%clk 0:02:14.7]} 14... exf4 {[%clk 0:02:38.3]} 15. Nexf4 {[%clk
0:02:11.3]} 15... Nxf4 {[%clk 0:02:32.4]} 16. Nxf4 {[%clk 0:01:45.4]} 16... Qh6
{[%clk 0:02:31.2]} 17. d4 {[%clk 0:01:35.8]} 17... Bd7 {[%clk 0:02:15.1]} 18. e5
{[%clk 0:01:25]} 18... Qxf4 {[%clk 0:02:06]} 19. Qxf4 {[%clk 0:01:17.6]} 19...
Rxf4 {[%clk 0:02:05.9]} 20. e6 {[%clk 0:01:11.6]} 20... Be8 {[%clk 0:02:05.8]}
21. d5 {[%clk 0:01:08.9]} 21... Ne5 {[%clk 0:02:03.9]} 22. b3 {[%clk 0:01:08.8]}
22... g5 {[%clk 0:02:03.4]} 23. Rae1 {[%clk 0:01:01.3]} 23... Bh5 {[%clk
0:02:02.2]} 24. Re3 {[%clk 0:01:01.5]} 24... Raf8 {[%clk 0:02:00.5]} 25. Rc1
{[%clk 0:00:40.3]} 25... Rxf2 {[%clk 0:01:54.3]} 26. c5 {[%clk 0:00:30.3]} 26...
Rxa2 {[%clk 0:01:46.8]} 27. cxd6 {[%clk 0:00:29.8]} 27... cxd6 {[%clk
0:01:47.1]} 28. Bh3 {[%clk 0:00:19]} 28... Nf3+ {[%clk 0:01:42.7]} 29. Rxf3
{[%clk 0:00:15.9]} 29... Bxf3 {[%clk 0:01:42.9]} 30. e7 {[%clk 0:00:14.5]} 30...
Re8 {[%clk 0:01:43.1]} 31. Rc7 {[%clk 0:00:14.6]} 31... g4 {[%clk 0:01:41.3]}
32. Bf1 {[%clk 0:00:13.1]} 32... Kf7 {[%clk 0:01:40.6]} 0-1

[Event "*** Titled Tuesday Blitz"]
[Site "Chess.com"]
[Date "2021.04.27"]
[Round "3"]
[White "dretch"]
[Black "Legendinunknown"]
[Result "1-0"]
[WhiteElo "2808"]
[BlackElo "2603"]
[TimeControl "180+1"]
[EndTime "10:26:31 PDT"]
[Termination "dretch won by resignation"]

1. d4 {[%clk 0:03:00.9]} 1... Nf6 {[%clk 0:02:58]} 2. c4 {[%clk 0:03:00.7]} 2...
g6 {[%clk 0:02:55.8]} 3. Nc3 {[%clk 0:02:58.2]} 3... Bg7 {[%clk 0:02:55.8]} 4.
e4 {[%clk 0:02:58.4]} 4... d6 {[%clk 0:02:55.5]} 5. Nf3 {[%clk 0:02:58.7]} 5...
O-O {[%clk 0:02:54]} 6. h3 {[%clk 0:02:59]} 6... e5 {[%clk 0:02:48.4]} 7. dxe5
{[%clk 0:02:59.9]} 7... dxe5 {[%clk 0:02:48.4]} 8. Qxd8 {[%clk 0:03:00.8]} 8...
Rxd8 {[%clk 0:02:49]} 9. Bg5 {[%clk 0:03:01.3]} 9... c6 {[%clk 0:02:35.1]} 10.
Nxe5 {[%clk 0:02:59.6]} 10... Re8 {[%clk 0:02:35.6]} 11. O-O-O {[%clk
0:02:59.2]} 11... Na6 {[%clk 0:02:36.2]} 12. Nf3 {[%clk 0:02:58]} 12... h6
{[%clk 0:02:32.3]} 13. Be3 {[%clk 0:02:56.9]} 13... Nxe4 {[%clk 0:01:58.8]} 14.
Nxe4 {[%clk 0:02:57.8]} 14... Rxe4 {[%clk 0:01:59.3]} 15. Rd8+ {[%clk
0:02:56.6]} 15... Kh7 {[%clk 0:01:59.5]} 16. h4 {[%clk 0:02:57.1]} 16... f6
{[%clk 0:01:44.3]} 17. Bd3 {[%clk 0:02:50.3]} 17... Rxe3 {[%clk 0:01:44.3]} 18.
fxe3 {[%clk 0:02:48.8]} 18... h5 {[%clk 0:01:44.3]} 19. Ng5+ {[%clk 0:02:00.5]}
19... fxg5 {[%clk 0:01:40.3]} 20. hxg5 {[%clk 0:02:00.8]} 20... Be5 {[%clk
0:01:14.2]} 21. Rxh5+ {[%clk 0:01:58.8]} 21... Kg7 {[%clk 0:01:14.4]} 22. Rhh8
{[%clk 0:01:58.7]} 22... Bf5 {[%clk 0:01:12.8]} 23. Rxa8 {[%clk 0:01:42.7]}
23... Bxd3 {[%clk 0:01:12.8]} 24. Rhe8 {[%clk 0:01:38.1]} 24... Bd6 {[%clk
0:01:01.5]} 25. Red8 {[%clk 0:01:33.5]} 25... Bxc4 {[%clk 0:00:54.9]} 26. Rxd6
{[%clk 0:01:29.8]} 26... Bxa2 {[%clk 0:00:54.3]} 27. Rd7+ {[%clk 0:01:26.5]}
27... Bf7 {[%clk 0:00:54.1]} 28. Rxb7 {[%clk 0:01:25.5]} 28... Nc5 {[%clk
0:00:54.2]} 29. Rbxa7 {[%clk 0:01:25.1]} 29... Ne6 {[%clk 0:00:50.9]} 30. Rc8
{[%clk 0:01:17.2]} 30... Nxg5 {[%clk 0:00:50.9]} 31. Rxc6 {[%clk 0:01:16.3]}
31... Kh6 {[%clk 0:00:51.3]} 32. Rxf7 {[%clk 0:01:14.6]} 32... Nxf7 {[%clk
0:00:52.2]} 33. b4 {[%clk 0:01:14.6]} 33... Ne5 {[%clk 0:00:52.5]} 34. Rc3
{[%clk 0:01:14.7]} 34... Kg5 {[%clk 0:00:48.6]} 35. b5 {[%clk 0:01:14.3]} 35...
Kf6 {[%clk 0:00:49.3]} 36. b6 {[%clk 0:01:14.5]} 36... Nd7 {[%clk 0:00:48.8]}
37. b7 {[%clk 0:01:14.7]} 37... Nb8 {[%clk 0:00:47]} 38. Rc8 {[%clk 0:01:13.7]}
38... Na6 {[%clk 0:00:47.1]} 39. Rc6+ {[%clk 0:01:13.5]} 1-0

[Event "*** Titled Tuesday Blitz"]
[Site "Chess.com"]
[Date "2021.04.27"]
[Round "3"]
[White "volkanyirik"]
[Black "DenisQ"]
[Result "1/2-1/2"]
[WhiteElo "2419"]
[BlackElo "2629"]
[TimeControl "180+1"]
[EndTime "10:26:35 PDT"]
[Termination "Game drawn by repetition"]

1. e4 {[%clk 0:03:00.9]} 1... c6 {[%clk 0:02:57.5]} 2. Nc3 {[%clk 0:03:01.8]}
2... d5 {[%clk 0:02:56.6]} 3. d4 {[%clk 0:03:02.1]} 3... dxe4 {[%clk 0:02:55.9]}
4. f3 {[%clk 0:03:01.6]} 4... e5 {[%clk 0:02:54.4]} 5. dxe5 {[%clk 0:03:02.5]}
5... Qxd1+ {[%clk 0:02:53.6]} 6. Nxd1 {[%clk 0:03:02.1]} 6... exf3 {[%clk
0:02:51.7]} 7. Nxf3 {[%clk 0:03:03]} 7... Bf5 {[%clk 0:02:41.2]} 8. Ne3 {[%clk
0:03:02.5]} 8... Bg6 {[%clk 0:02:41.3]} 9. Nh4 {[%clk 0:03:00.3]} 9... Nd7
{[%clk 0:02:38.8]} 10. Nxg6 {[%clk 0:03:00.1]} 10... hxg6 {[%clk 0:02:39.7]} 11.
Nc4 {[%clk 0:03:00]} 11... b5 {[%clk 0:02:16.8]} 12. Nd6+ {[%clk 0:02:57.9]}
12... Bxd6 {[%clk 0:02:16.2]} 13. exd6 {[%clk 0:02:58.8]} 13... Ngf6 {[%clk
0:02:14.2]} 14. Bf4 {[%clk 0:02:53.3]} 14... Nd5 {[%clk 0:02:07.6]} 15. Bg3
{[%clk 0:02:53.3]} 15... N7f6 {[%clk 0:02:05.3]} 16. O-O-O {[%clk 0:02:48.1]}
16... Kd7 {[%clk 0:02:04.6]} 17. c4 {[%clk 0:02:47.5]} 17... Ne3 {[%clk
0:01:56.4]} 18. Re1 {[%clk 0:02:44.3]} 18... Nf5 {[%clk 0:01:53.4]} 19. Bd3
{[%clk 0:02:38.7]} 19... Nxg3 {[%clk 0:01:49.7]} 20. hxg3 {[%clk 0:02:34.6]}
20... Rxh1 {[%clk 0:01:49.4]} 21. Rxh1 {[%clk 0:02:35.5]} 21... bxc4 {[%clk
0:01:43.5]} 22. Bxc4 {[%clk 0:02:36.4]} 22... Nd5 {[%clk 0:01:42.4]} 23. Rh7
{[%clk 0:02:17.1]} 23... Rg8 {[%clk 0:01:41.3]} 24. Bxd5 {[%clk 0:02:10.3]}
24... cxd5 {[%clk 0:01:40.6]} 25. Rh4 {[%clk 0:02:10.2]} 25... Kxd6 {[%clk
0:01:35.8]} 26. Ra4 {[%clk 0:02:09.3]} 26... Rc8+ {[%clk 0:01:34.7]} 27. Kd2
{[%clk 0:02:09.2]} 27... Rc7 {[%clk 0:01:34.8]} 28. Kd3 {[%clk 0:02:08.7]} 28...
Ke5 {[%clk 0:01:32.7]} 29. Ra6 {[%clk 0:02:03.8]} 29... g5 {[%clk 0:01:30.4]}
30. b4 {[%clk 0:01:58.4]} 30... f5 {[%clk 0:01:21.8]} 31. Rg6 {[%clk 0:01:55.5]}
31... g4 {[%clk 0:01:20.6]} 32. Ra6 {[%clk 0:01:51.5]} 32... g5 {[%clk
0:01:04.2]} 33. a4 {[%clk 0:01:44.2]} 33... f4 {[%clk 0:01:02.4]} 34. Rg6 {[%clk
0:01:40.6]} 34... Kf5 {[%clk 0:00:45.5]} 35. Rd6 {[%clk 0:01:38.1]} 35... Ke5
{[%clk 0:00:26.1]} 36. Rg6 {[%clk 0:01:37.6]} 36... Kf5 {[%clk 0:00:21.8]} 37.
Rd6 {[%clk 0:01:36.8]} 37... Ke5 {[%clk 0:00:21.2]} 38. Rg6 {[%clk 0:01:36.1]}
1/2-1/2

[Event "*** Titled Tuesday Blitz"]
[Site "Chess.com"]
[Date "2021.04.27"]
[Round "3"]
[White "monikarozman"]
[Black "Grandmaster2B"]
[Result "0-1"]
[WhiteElo "2185"]
[BlackElo "2508"]
[TimeControl "180+1"]
[EndTime "10:26:35 PDT"]
[Termination "Grandmaster2B won by resignation"]

1. d4 {[%clk 0:03:00.9]} 1... Nf6 {[%clk 0:03:00]} 2. c4 {[%clk 0:03:00.9]} 2...
e6 {[%clk 0:03:00.2]} 3. Nc3 {[%clk 0:03:01.2]} 3... Bb4 {[%clk 0:03:00.4]} 4.
e3 {[%clk 0:02:56.8]} 4... b6 {[%clk 0:02:59]} 5. Ne2 {[%clk 0:02:56]} 5... Ba6
{[%clk 0:02:58.9]} 6. Ng3 {[%clk 0:02:44.8]} 6... Bxc3+ {[%clk 0:02:58.3]} 7.
bxc3 {[%clk 0:02:44.3]} 7... d5 {[%clk 0:02:59.2]} 8. Qa4+ {[%clk 0:02:27]} 8...
Qd7 {[%clk 0:02:57.5]} 9. Qxd7+ {[%clk 0:02:26.8]} 9... Nbxd7 {[%clk 0:02:50.5]}
10. cxd5 {[%clk 0:02:27.7]} 10... Bxf1 {[%clk 0:02:50.9]} 11. Rxf1 {[%clk
0:02:26.6]} 11... exd5 {[%clk 0:02:48.9]} 12. a4 {[%clk 0:02:26.4]} 12... O-O-O
{[%clk 0:02:48.4]} 13. a5 {[%clk 0:02:23]} 13... Kb7 {[%clk 0:02:47.4]} 14. Ba3
{[%clk 0:02:17.8]} 14... Rhe8 {[%clk 0:02:44.3]} 15. Kd2 {[%clk 0:02:15.9]}
15... g6 {[%clk 0:02:41.9]} 16. Kd3 {[%clk 0:02:15.8]} 16... h5 {[%clk
0:02:41.5]} 17. h4 {[%clk 0:02:14.5]} 17... Ne4 {[%clk 0:02:36.5]} 18. Ne2
{[%clk 0:02:05.5]} 18... c5 {[%clk 0:02:28.9]} 19. dxc5 {[%clk 0:01:51.9]} 19...
Ndxc5+ {[%clk 0:02:24.6]} 20. Bxc5 {[%clk 0:01:49]} 20... Nxc5+ {[%clk
0:02:25.5]} 21. Kc2 {[%clk 0:01:46.1]} 21... Ne4 {[%clk 0:02:25]} 22. axb6
{[%clk 0:01:44.1]} 22... axb6 {[%clk 0:02:24.4]} 23. Nd4 {[%clk 0:01:34.2]}
23... Rc8 {[%clk 0:02:23.2]} 24. Ra3 {[%clk 0:01:33.7]} 24... Ra8 {[%clk
0:02:12.8]} 25. Nb5 {[%clk 0:00:57.5]} 25... Rxa3 {[%clk 0:02:10.3]} 26. Nxa3
{[%clk 0:00:58.4]} 26... Rc8 {[%clk 0:02:09.5]} 27. Nb1 {[%clk 0:00:51.7]} 27...
b5 {[%clk 0:02:03.8]} 28. f3 {[%clk 0:00:50.5]} 28... Ng3 {[%clk 0:01:56.9]} 29.
Rd1 {[%clk 0:00:50.3]} 29... Nf5 {[%clk 0:01:56.9]} 30. Rd3 {[%clk 0:00:39.9]}
30... Kc6 {[%clk 0:01:50.4]} 31. e4 {[%clk 0:00:28]} 31... dxe4 {[%clk
0:01:51.3]} 32. fxe4 {[%clk 0:00:28.5]} 32... Nxh4 {[%clk 0:01:46.5]} 33. g3
{[%clk 0:00:24.3]} 33... Ng2 {[%clk 0:01:46.7]} 34. Kd2 {[%clk 0:00:21.5]} 34...
h4 {[%clk 0:01:47.1]} 35. gxh4 {[%clk 0:00:20.6]} 35... Nxh4 {[%clk 0:01:48]}
36. Ke2 {[%clk 0:00:15.7]} 36... g5 {[%clk 0:01:45.7]} 37. Nd2 {[%clk 0:00:15]}
37... Ng6 {[%clk 0:01:45.3]} 38. Nf3 {[%clk 0:00:14.7]} 38... Nf4+ {[%clk
0:01:45.4]} 0-1